bitfinex-derivatives/quotes_ETHF0:USTF0_20251216
["timestamp","ask_amount","ask_price","bid_price","bid_amount"]
[1765907419775,2.1963,2925.5,2925.4,0.00512356]
[1765907420084,2.1963,2925.5,2924.6,0.17099]
[1765907420085,1.7035,2924.7,2924.6,3.2078]
[1765907420276,0.4928,2925.0,2924.3,4.0657]
[1765907420277,1.7035,2924.4,2924.3,4.0657]
[1765907420877,1.70681327,2924.4,2924.3,4.92197907]
[1765907421084,1.79995635,2924.4,2924.3,4.92197907]
[1765907421590,0.98125635,2924.4,2924.3,4.92197907]
[1765907422088,1.79995635,2924.4,2924.3,4.06897907]
[1765907422782,0.98125635,2924.4,2924.3,4.92197907]
[1765907422986,1.79995635,2924.4,2924.3,4.92197907]
[1765907423583,1.79995635,2924.4,2924.3,6.32258117]
[1765907424590,0.98125635,2924.4,2924.3,6.32258117]
[1765907425686,0.09645635,2924.4,2924.3,6.32258117]
[1765907425985,1.3776,2925.0,2924.9,1.7109]
[1765907426185,3.2078,2925.3,2924.9,1.7109]
[1765907426186,4.0926,2925.3,2925.2,1.7109]
[1765907426388,3.2078,2925.3,2925.2,3.1115021]
[1765907427181,3.25685823,2925.3,2925.2,3.1115021]
[1765907427387,3.25685823,2925.3,2925.2,1.7109]
[1765907427984,4.96035823,2925.3,2925.2,0.8579]
[1765907428179,4.96035823,2925.3,2924.6,3.2078]
[1765907428986,0.8848,2924.7,2924.6,4.9187]
[1765907429182,0.93137154,2924.7,2924.6,4.9187]
[1765907429378,0.04657154,2924.7,2924.6,4.9187]
[1765907429579,1.75007154,2924.7,2924.6,4.9187]
[1765907429778,0.93137154,2924.7,2924.6,1.7109]
[1765907429986,0.04657154,2924.7,2924.6,1.7109]
[1765907431083,0.93137154,2924.7,2924.6,1.7109]
[1765907431891,0.04657154,2924.7,2924.6,1.7109]
[1765907432389,0.93137154,2924.7,2924.6,1.7109]
[1765907432786,0.04657154,2924.7,2924.6,1.7109]
[1765907432981,1.7035,2924.4,2924.3,4.06897907]
[1765907433289,1.75007154,2924.4,2924.3,0.00327907]
[1765907433592,4.95787154,2924.4,2924.3,0.00327907]
[1765907437487,4.9113,2924.4,2924.3,0.79617907]
[1765907437690,0.09314308,2924.4,2924.3,1.60947907]
[1765907439796,0.87524308,2924.4,2924.3,1.60947907]
[1765907439994,1.63284308,2924.4,2924.3,1.60947907]
[1765907440192,1.63284308,2924.4,2924.3,0.79617907]
[1765907440493,1.63284308,2924.4,2924.3,0.00327907]
[1765907444395,4.84064308,2924.4,2924.3,0.00327907]
[1765907444992,1.5397,2924.2,2924.1,0.00512356]
[1765907445696,1.63284308,2924.2,2924.1,0.00512356]
[1765907446001,1.63284308,2924.2,2924.1,0.0092972]
[1765907447303,1.63284308,2924.2,2924.1,0.8021972]
[1765907447904,1.67941462,2924.2,2924.1,1.6154972]
[1765907450303,0.13971462,2924.2,2924.1,1.6154972]
[1765907450806,0.92181462,2924.2,2924.1,1.6154972]
[1765907451008,1.67941462,2924.2,2924.1,1.6154972]
[1765907451601,1.67941462,2924.2,2924.1,0.8021972]
[1765907451806,1.67941462,2924.2,2924.1,0.0092972]
[1765907454906,1.67941462,2924.2,2924.1,0.8021972]
[1765907455807,1.67941462,2924.2,2924.1,1.6154972]
[1765907456010,1.67941462,2924.2,2924.1,0.0092972]
[1765907457111,1.67941462,2924.2,2923.2,6.66389017]
[1765907457112,0.4879,2924.0,2923.0,5.07114575]
[1765907457298,4.7475,2923.4,2923.3,0.7929]
[1765907457900,4.88721462,2923.4,2923.3,0.7929]
[1765907458112,4.88721462,2923.4,2923.3,0.79548668]
[1765907459202,4.88721462,2923.4,2923.3,1.60878668]
[1765907459406,0.13971462,2923.4,2923.3,1.60878668]
[1765907459808,1.54482356,2923.6,2923.5,1.41991384]
[1765907460516,0.00512356,2923.6,2923.5,1.41991384]
[1765907461414,1.54482356,2923.6,2923.5,0.60661384]
[1765907461922,1.5397,2923.4,2923.3,3.21038668]
[1765907462211,1.5397,2923.4,2923.3,4.00328668]
[1765907462612,1.5397,2923.4,2923.3,4.81658668]
[1765907462813,1.5397,2923.4,2923.3,0.00258668]
[1765907463618,1.5397,2923.4,2923.3,0.79548668]
[1765907463813,1.5397,2923.4,2923.3,0.00258668]
[1765907464412,4.7475,2923.4,2923.3,0.00258668]
[1765907464615,1.4657,2922.7,2922.6,7.48604575]
[1765907464811,1.4657,2922.7,2922.6,3.2078]
[1765907465013,0.7254,2922.7,2922.6,4.691]
[1765907465217,0.4724,2923.0,2922.6,4.691]
[1765907465620,0.7254,2922.7,2922.6,4.69429544]
[1765907466021,1.94211912,2923.0,2922.9,1.4832]
[1765907466422,0.00401912,2923.0,2922.9,1.4832]
[1765907467222,0.00401912,2923.0,2922.9,4.691]
[1765907467420,0.00401912,2923.0,2922.9,9.04453669]
[1765907468723,0.00401912,2923.0,2922.9,5.83673669]
[1765907468926,0.00401912,2923.0,2922.9,9.04453669]
[1765907469723,1.20181912,2923.0,2922.9,9.04453669]
[1765907469922,0.47641912,2923.0,2922.9,9.04453669]
[1765907470723,0.00401912,2923.0,2922.9,9.04453669]
[1765907472623,0.00401912,2923.0,2922.9,9.21563669]
[1765907472926,1.912e-05,2923.0,2922.9,9.21563669]
[1765907473523,0.00512356,2923.6,2923.5,1.4832]
[1765907473821,3.9332,2924.3,2924.2,1.4832]
[1765907474022,1.4657,2924.3,2924.2,0.7191]
[1765907474216,1.4657,2924.3,2923.8,3.2078]
[1765907474621,1.46813122,2924.3,2924.2,0.7191]
[1765907474825,1.46813122,2924.3,2924.2,1.4832]
[1765907474826,1.47325478,2924.3,2924.2,1.4832]
[1765907475124,0.73295478,2924.3,2924.2,1.4832]
[1765907475320,1.47325478,2924.3,2924.2,1.4832]
[1765907475526,1.47325478,2924.3,2924.2,0.7191]
[1765907477617,1.4657,2924.2,2924.1,3.2078]
[1765907477817,1.4657,2923.9,2923.8,0.00512356]
[1765907481729,0.7254,2923.9,2923.8,1.48832356]
[1765907481926,1.4657,2923.9,2923.8,1.48832356]
[1765907482723,1.4657,2923.9,2923.8,0.72422356]
[1765907483530,1.4657,2923.9,2923.8,0.00512356]
[1765907483730,0.4724,2924.0,2923.3,3.2078]
[1765907483731,1.4657,2923.4,2923.3,3.2078]
[1765907483930,1.4657,2923.1,2923.0,3.2078]
[1765907484329,1.4657,2922.7,2922.6,3.21109544]
[1765907484729,1.4657,2922.7,2922.6,0.00329544]
[1765907485231,0.7254,2922.1,2922.0,5.1459]
[1765907485427,1.4657,2922.1,2922.0,4.3818]
[1765907486226,1.51673048,2922.1,2922.0,1.17775546]
[1765907486535,1.51673048,2922.1,2922.0,0.00375546]
[1765907486723,0.77643048,2922.1,2922.0,1.17775546]
[1765907486923,1.51673048,2922.1,2922.0,0.45865546]
[1765907487128,1.51673048,2922.1,2922.0,1.17775546]
[1765907487429,1.51673048,2922.1,2922.0,0.00375546]
[1765907488037,1.51673048,2922.1,2922.0,0.72285546]
[1765907488329,1.51673048,2922.1,2922.0,0.00375546]
[1765907489033,1.4657,2921.5,2921.4,0.7191]
[1765907489233,1.51232565,2921.5,2921.4,0.7191]
[1765907489538,1.51232565,2921.5,2921.1,3.2078]
[1765907490035,1.51232565,2921.5,2921.1,3.21142503]
[1765907490429,1.51232565,2921.3,2921.2,0.7191]
[1765907490630,0.77202565,2921.3,2921.2,1.4832]
[1765907491237,1.51232565,2921.3,2921.2,1.4832]
[1765907491437,0.77202565,2921.3,2921.2,1.4832]
[1765907492636,0.04662565,2921.3,2921.2,1.4832]
[1765907494140,3.21220483,2922.1,2922.0,1.5251]
[1765907494335,4.15860483,2922.1,2922.0,2.4801]
[1765907494534,1.87390483,2922.1,2922.0,2.4801]
[1765907495044,1.87390483,2922.1,2922.0,1.5251]
[1765907495241,1.8409,2921.8,2921.7,3.2078]
[1765907495445,0.9178,2921.6,2921.5,2.4637]
[1765907495846,3.2078,2922.0,2921.5,2.4637]
[1765907496240,0.9178,2921.6,2921.5,2.4637]
[1765907496441,0.04662565,2921.6,2921.5,2.4637]
[1765907497742,0.04662565,2921.6,2921.5,6.95040038]
[1765907498045,0.00440483,2922.1,2922.0,2.4785]
[1765907498248,0.92220483,2922.1,2922.0,2.4785]
[1765907499754,1.84530483,2922.1,2922.0,0.575]
[1765907500052,0.00440483,2922.1,2921.7,5.1113]
[1765907500251,1.84530483,2922.1,2922.0,0.9485]
[1765907501045,1.84530483,2922.1,2922.0,1.5235]
[1765907501453,1.84530483,2922.1,2922.0,2.4785]
[1765907501754,0.00440483,2922.1,2922.0,2.4785]
[1765907502546,0.00440483,2922.1,2922.0,5.6863]
[1765907503955,5.0487,2923.0,2922.9,0.9485]
[1765907504150,1.8409,2923.0,2922.9,0.9485]
[1765907505048,0.92130852,2923.0,2922.9,1.9035]
[1765907505249,0.00350852,2923.0,2922.9,1.9035]
[1765907506052,0.00513267,2923.2,2922.9,8.61723631]
[1765907506252,0.00513267,2923.2,2923.1,1.9035]
[1765907506650,0.03517468,2923.2,2923.1,1.9035]
[1765907507258,0.0384127,2923.2,2923.1,1.9035]
[1765907509554,3.2078,2923.6,2923.5,2.4785]
[1765907509862,3.2078,2923.9,2923.8,1.9035]
[1765907510655,3.21072622,2923.9,2923.8,1.90690765]
[1765907511260,0.00292622,2923.9,2923.8,1.90690765]
[1765907512563,1.84382622,2923.9,2923.8,1.90690765]
[1765907513053,1.84382622,2923.9,2923.8,0.00340765]
[1765907513658,1.84382622,2923.9,2923.8,0.95190765]
[1765907513864,1.84382622,2923.9,2923.8,0.00340765]
[1765907514666,0.00292622,2923.9,2923.8,1.90690765]
[1765907515162,0.92072622,2923.9,2923.8,1.90690765]
[1765907516958,1.84382622,2923.9,2923.8,0.00340765]
[1765907518165,5.05162622,2923.9,2923.8,0.00340765]
[1765907519264,4.12852622,2923.9,2923.8,1.90690765]
[1765907519566,5.05162622,2923.9,2923.8,0.95190765]
[1765907520669,3.21072622,2923.9,2923.8,1.90690765]
[1765907521162,4.12852622,2923.9,2923.8,1.90690765]
[1765907521866,5.05162622,2923.9,2923.8,0.00340765]
[1765907522172,5.05162622,2923.9,2923.8,1.90690765]
[1765907522666,5.05162622,2923.9,2923.8,0.00340765]
[1765907525067,5.05162622,2923.9,2923.8,1.71760765]
[1765907525463,3.21072622,2923.9,2923.8,1.71760765]
[1765907525663,0.00513267,2924.1,2924.0,2.2523]
[1765907526676,0.00829561,2924.1,2924.0,5.4601]
[1765907526969,3.2078,2924.5,2924.4,1.7142]
[1765907527972,3.2112742,2924.5,2924.4,1.7142]
[1765907529465,0.0034742,2924.5,2924.4,1.7142]
[1765907529670,1e-08,2924.7,2924.6,3.81872296]
[1765907530074,1e-08,2924.7,2924.6,11.38412609]
[1765907530271,4.1235,2925.4,2925.3,1.7142]
[1765907530672,0.00316472,2925.4,2925.3,1.7142]
[1765907531474,0.91886472,2925.4,2925.3,1.7142]
[1765907532070,1.8078,2925.2,2925.1,0.00513267]
[1765907534278,1.8078,2924.7,2924.6,3.2078]
[1765907535275,0.9157,2924.7,2924.6,4.922]
[1765907535578,1.8078,2924.7,2924.6,3.2078]
[1765907535984,1.8078,2924.5,2924.4,0.85763267]
[1765907536668,1.8078,2924.5,2924.4,1.71933267]
[1765907537180,1.8078,2924.5,2924.4,0.85763267]
[1765907537377,1.8078,2924.5,2924.4,0.00513267]
[1765907537578,1.8078,2924.5,2924.4,0.85763267]
[1765907538879,3.2078,2924.8,2924.7,0.8525]
[1765907539079,1.8078,2924.6,2924.5,2.2523]
[1765907539274,0.9157,2924.6,2924.5,2.2523]
[1765907539476,3.2078,2924.8,2924.7,1.7142]
[1765907540084,3.2078,2925.1,2925.0,2.2523]
[1765907540477,3.21096472,2925.4,2925.3,1.7142]
[1765907540983,4.12666472,2925.4,2925.3,1.7142]
[1765907541284,3.21096472,2925.4,2925.3,1.7142]
[1765907541982,4.12666472,2925.4,2925.3,1.7142]
[1765907542885,0.91886472,2925.4,2925.3,1.7142]
[1765907543784,0.00316472,2925.4,2925.3,1.7142]
[1765907544186,0.00513267,2925.6,2925.5,2.2523]
[1765907544383,0.00513267,2925.6,2925.5,4.35682296]
[1765907545179,0.00903259,2925.6,2925.5,4.35682296]
[1765907545389,0.00903259,2925.6,2925.5,8.88646232]
[1765907546187,3.2078,2926.0,2925.9,1.7142]
[1765907546492,3.2078,2926.0,2925.9,3.81872296]
[1765907546785,3.2078,2926.3,2926.0,0.5381]
[1765907546990,1.8078,2926.1,2926.0,2.2523]
[1765907547192,0.91839929,2926.1,2926.0,2.25656716]
[1765907547486,1.81049929,2926.1,2926.0,0.00426716]
[1765907549090,1.81049929,2926.1,2926.0,1.39486716]
[1765907549291,1.81049929,2926.1,2926.0,0.54236716]
[1765907549492,1.81049929,2926.1,2926.0,0.00426716]
[1765907550386,1.8078,2925.9,2925.8,0.00513267]
[1765907550692,5.0156,2925.9,2925.8,0.00513267]
[1765907551589,5.0156,2925.9,2925.8,0.00774406]
[1765907553090,1.8078,2925.9,2925.8,1.72194406]
[1765907553387,1.8078,2925.9,2925.8,0.00774406]
[1765907554987,1.8078,2925.9,2925.8,0.86024406]
[1765907555284,1.52009929,2926.1,2926.0,0.4543]
[1765907555492,1.52009929,2926.1,2926.0,2.0027]
[1765907555493,0.00269929,2926.1,2926.0,2.0027]
[1765907555685,0.77309929,2926.1,2926.0,2.0027]
[1765907555887,1.52009929,2926.1,2926.0,2.0027]
[1765907556086,0.00269929,2926.1,2926.0,2.0027]
[1765907556488,1.52009929,2926.1,2926.0,0.4543]
[1765907556889,1.5174,2925.9,2925.8,0.00774406]
[1765907557303,1.5174,2925.9,2925.8,0.76114406]
[1765907557492,0.7704,2925.9,2925.8,1.55614406]
[1765907557991,0.00269929,2926.1,2926.0,2.0027]
[1765907558193,1.52009929,2926.1,2926.0,0.4543]
[1765907558900,1.5174,2925.9,2925.8,0.00774406]
[1765907559089,1.5174,2925.9,2925.8,0.76114406]
[1765907559595,1.52009929,2926.1,2926.0,2.0027]
[1765907559996,1.52009929,2926.1,2926.0,0.4543]
[1765907560200,1.5174,2925.9,2925.8,0.76114406]
[1765907560698,1.52009929,2926.1,2926.0,1.2077]
[1765907560904,0.77309929,2926.1,2926.0,2.0027]
[1765907561507,1.52009929,2926.1,2926.0,2.0027]
[1765907562305,0.77309929,2926.1,2926.0,2.0027]
[1765907562802,0.00269929,2926.1,2926.0,2.0027]
[1765907564606,0.00513267,2926.3,2926.2,1.5484]
[1765907565602,0.00823834,2926.3,2926.2,1.5484]
[1765907565806,0.77863834,2926.3,2926.2,1.5484]
[1765907566210,0.00823834,2926.3,2926.2,1.5484]
[1765907566813,0.77863834,2926.3,2926.2,1.5484]
[1765907567013,0.00823834,2926.3,2926.2,1.5484]
[1765907569516,0.7704,2926.1,2926.0,2.0027]
[1765907569908,1.52563834,2926.3,2926.2,1.5484]
[1765907570304,1.5174,2926.1,2926.0,2.0027]
[1765907570516,0.7704,2926.1,2926.0,2.0027]
[1765907571416,1.52563834,2926.3,2926.2,0.7534]
[1765907572218,0.77863834,2926.3,2926.2,1.5484]
[1765907572522,4.73343834,2926.3,2926.2,0.7534]
[1765907572713,1.5174,2926.1,2926.0,2.0027]
[1765907573017,0.7704,2926.1,2926.0,2.0027]
[1765907573511,0.77863834,2926.3,2926.2,0.7534]
[1765907573717,0.77863834,2926.3,2926.2,1.5484]
[1765907573913,1.52563834,2926.3,2926.2,1.5484]
[1765907574309,0.77863834,2926.3,2926.2,1.5484]
[1765907574510,0.00823834,2926.3,2926.2,1.5484]
[1765907575614,4.7252,2927.2,2927.1,0.7534]
[1765907575809,0.7704,2927.1,2927.0,2.0027]
[1765907576014,3.9782,2927.2,2927.1,1.5484]
[1765907576716,3.98147291,2927.2,2927.1,1.5484]
[1765907577019,4.72847291,2927.2,2927.1,1.5484]
[1765907577214,3.98147291,2927.2,2927.1,1.5484]
[1765907578119,3.21107291,2927.2,2927.1,1.5484]
[1765907578821,4.72847291,2927.2,2927.1,1.5484]
[1765907579315,0.7704,2926.6,2926.5,5.2105]
[1765907579521,3.21107291,2927.2,2926.5,5.2105]
[1765907580309,0.747,2926.6,2926.1,3.2078]
[1765907580521,0.7704,2926.2,2926.1,4.7562]
[1765907580718,3.2078,2926.9,2926.1,9.10839996]
[1765907581419,0.7704,2926.2,2926.1,1.5484]
[1765907582422,1.5174,2925.9,2925.8,3.96894406]
[1765907582614,1.5174,2925.9,2925.8,0.00774406]
[1765907583010,4.7252,2925.9,2925.8,0.00774406]
[1765907583320,1.5174,2925.1,2924.5,0.4543]
[1765907583521,3.2078,2925.0,2924.5,0.4543]
[1765907583712,3.2078,2925.0,2924.6,4.49302583]
[1765907583912,3.9782,2924.7,2924.6,1.473]
[1765907584117,4.7318,2924.7,2924.6,0.7534]
[1765907584311,4.73553626,2924.7,2924.6,0.75696565]
[1765907584518,4.73553626,2924.7,2924.6,0.00356565]
[1765907587918,0.00373626,2924.7,2924.6,1.44366565]
[1765907588217,0.73613626,2924.7,2924.6,1.44366565]
[1765907588414,1.48973626,2924.7,2924.6,0.00356565]
[1765907588922,1.48973626,2924.7,2924.6,1.44366565]
[1765907589419,0.73613626,2924.7,2924.6,1.44366565]
[1765907590221,3.94393626,2924.7,2924.6,1.44366565]
[1765907590422,4.69753626,2924.7,2924.6,0.00356565]
[1765907590622,3.21153626,2924.7,2924.6,0.72406565]
[1765907590811,4.69753626,2924.7,2924.6,0.00356565]
[1765907591417,4.69753626,2924.7,2924.6,0.72406565]
[1765907591923,4.69753626,2924.7,2924.6,1.44366565]
[1765907592223,3.94393626,2924.7,2924.6,1.44366565]
[1765907592424,4.69753626,2924.7,2924.6,1.44366565]
[1765907593022,4.69753626,2924.7,2924.6,0.72406565]
[1765907593716,4.69753626,2924.7,2924.6,0.00356565]
[1765907594319,1.48973626,2924.7,2924.6,0.72406565]
[1765907594520,1.48973626,2924.7,2924.6,1.44366565]
[1765907595128,1.48973626,2924.7,2924.6,0.00356565]
[1765907597526,1.48973626,2924.7,2924.6,0.72406565]
[1765907598327,0.00373626,2924.7,2924.6,9.053723]
[1765907600722,0.00373626,2924.7,2924.6,5.845923]
[1765907601326,1.48973626,2924.7,2924.6,5.845923]
[1765907601526,1.48973626,2924.7,2924.6,1.44366565]
[1765907601926,0.00373626,2924.7,2924.6,1.44366565]
[1765907602326,0.73613626,2924.7,2924.6,1.44366565]
[1765907602628,0.00513267,2924.9,2924.8,1.4401]
[1765907603032,0.73753267,2924.9,2924.8,1.4401]
[1765907603431,1.49113267,2924.9,2924.8,1.4401]
[1765907603627,0.74106578,2924.9,2924.8,1.4401]
[1765907604023,1.486,2924.7,2924.6,1.44366565]
[1765907604331,1.486,2924.7,2924.6,0.00356565]
[1765907604532,4.6938,2924.7,2924.6,0.00356565]
[1765907605734,3.9402,2924.7,2924.6,1.44366565]
[1765907605926,4.6938,2924.7,2924.6,1.44366565]
[1765907607234,1.486,2924.7,2924.6,0.72406565]
[1765907607534,1.49466578,2924.9,2924.8,1.4401]
[1765907607831,1.49466578,2924.9,2924.8,0.7205]
[1765907608232,1.49466578,2924.9,2924.8,1.4401]
[1765907608636,1.486,2924.7,2924.6,1.44366565]
[1765907608834,1.486,2924.7,2924.6,0.00356565]
[1765907609528,1.486,2924.7,2924.6,0.72406565]
[1765907610737,1.486,2924.7,2924.6,1.44366565]
[1765907611737,0.00866578,2924.9,2924.8,1.4401]
[1765907612339,1.49466578,2924.9,2924.8,1.4401]
[1765907612535,1.49466578,2924.9,2924.8,0.7205]
[1765907612931,1.49466578,2924.9,2924.6,0.00356565]
[1765907612932,1.486,2924.7,2924.6,0.00356565]
[1765907613137,1.486,2924.7,2924.6,0.72406565]
[1765907613327,1.486,2924.7,2924.6,1.44366565]
[1765907614934,0.7324,2924.7,2924.6,1.44366565]
[1765907615943,1.5041,2924.7,2924.6,1.44366565]
[1765907616444,1.5041,2924.7,2924.6,0.72406565]
[1765907617241,1.5041,2924.7,2924.6,1.47416565]
[1765907617746,1.5041,2924.7,2924.6,0.72406565]
[1765907618336,1.5041,2924.7,2924.6,0.00356565]
[1765907619636,1.5041,2924.7,2924.6,1.50316565]
[1765907619845,3.96926578,2924.9,2924.8,1.4996]
[1765907620239,3.21646578,2924.9,2924.8,1.4996]
[1765907620740,0.7528,2925.4,2925.3,1.4996]
[1765907621040,3.2078,2926.1,2925.3,4.7074]
[1765907621546,1.95027436,2926.0,2925.9,0.7495]
[1765907621747,1.17857436,2926.0,2925.9,1.4996]
[1765907622055,0.00287436,2926.0,2925.9,1.4996]
[1765907623041,1.5245,2925.3,2925.2,4.2920666]
[1765907623345,1.5245,2925.3,2924.9,3.2078]
[1765907623346,1.29846231,2924.7,2924.6,1.50316565]
[1765907623540,1.29846231,2924.7,2924.6,0.75306565]
[1765907623746,1.29846231,2924.7,2924.6,1.50316565]
[1765907623939,0.52676231,2924.7,2924.6,1.50316565]
[1765907624339,0.52676231,2924.7,2924.6,0.75306565]
[1765907624340,1.29846231,2924.7,2924.6,0.75306565]
[1765907624736,1.29846231,2924.7,2924.6,1.50316565]
[1765907625350,0.52676231,2924.7,2924.6,1.50316565]
[1765907625851,1.29846231,2924.7,2924.6,1.50316565]
[1765907626351,0.52676231,2924.7,2924.6,1.50316565]
[1765907626547,40.8,2925.4,2925.3,0.7495]
[1765907626548,4.7323,2925.4,2925.3,0.7495]
[1765907626751,4.7323,2925.4,2924.7,3.2078]
[1765907627545,4.7323,2925.4,2924.8,4.457136]
[1765907628750,1.5245,2925.4,2925.3,0.7495]
[1765907629452,0.7528,2925.1,2925.0,1.4996]
[1765907629651,1.5245,2925.1,2925.0,4.7074]
[1765907629854,1.5245,2925.1,2925.0,1.4996]
[1765907630353,1.5245,2925.1,2925.0,0.7495]
[1765907630549,1.5245,2924.7,2924.6,0.00356565]
[1765907630754,1.5245,2924.7,2924.6,0.75306565]
[1765907631648,1.5245,2924.7,2924.6,0.00356565]
[1765907637355,1.5245,2924.7,2924.6,0.75306565]
[1765907638160,1.5245,2924.7,2924.6,0.00356565]
[1765907639766,1.5245,2924.7,2924.6,0.75306565]
[1765907639959,1.5245,2924.7,2924.6,0.00356565]
[1765907640259,1.5245,2924.7,2924.6,1.50316565]
[1765907640858,1.5245,2924.7,2924.6,0.75306565]
[1765907641367,1.5245,2924.7,2924.6,1.50316565]
[1765907641562,1.5245,2924.7,2924.6,0.75306565]
[1765907642064,1.5245,2924.7,2924.6,0.00356565]
[1765907642267,1.5245,2924.7,2924.6,0.75306565]
[1765907642764,1.5245,2924.7,2924.6,0.00356565]
[1765907643467,2.0015,2925.0,2924.9,1.4996]
[1765907643762,1.5245,2924.7,2924.6,0.00356565]
[1765907643964,4.7323,2924.7,2924.6,0.00356565]
[1765907644467,2.0633,2924.5,2924.4,0.00513267]
[1765907645277,2.0633,2924.5,2924.4,0.00887194]
[1765907648177,0.7782,2924.5,2924.4,1.58837194]
[1765907648377,2.0633,2924.5,2924.4,0.00887194]
[1765907648579,2.0633,2924.5,2924.4,0.82397194]
[1765907648974,3.2078,2924.7,2924.4,0.82397194]
[1765907648975,0.7782,2924.7,2924.6,1.5795]
[1765907649284,5.2539,2925.0,2924.9,0.8151]
[1765907649583,5.2539,2925.0,2924.4,0.00887194]
[1765907649980,5.2539,2925.0,2924.4,3.21667194]
[1765907654383,2.0461,2925.0,2924.4,3.21667194]
[1765907655082,3.2078,2925.1,2925.0,1.5795]
[1765907655083,4.7769,2925.1,2925.0,1.5795]
[1765907655882,1.5691,2925.1,2925.0,1.5795]
[1765907656076,1.5691,2925.1,2925.0,0.8151]
[1765907656277,1.5691,2925.1,2925.0,1.5795]
[1765907656877,1.5691,2925.1,2925.0,0.8151]
[1765907657183,3.2078,2925.4,2925.0,1.5795]
[1765907657384,0.7782,2925.1,2925.0,1.5795]
[1765907657580,3.2078,2925.4,2924.4,0.00887194]
[1765907657581,1.5691,2924.8,2924.4,0.00887194]
[1765907657786,2.0633,2924.5,2924.4,0.82397194]
[1765907658378,2.0633,2924.5,2924.4,1.58837194]
[1765907659080,1.2724,2925.0,2924.9,1.5795]
[1765907659884,1.5691,2924.7,2924.6,1.75049]
[1765907660082,1.5691,2924.7,2924.6,1.5795]
[1765907660288,2.0633,2925.0,2924.9,0.8151]
[1765907663183,2.0633,2925.0,2924.5,0.171]
[1765907663386,0.7782,2924.6,2924.5,1.7505]
[1765907663694,1.5691,2924.6,2924.5,5.33830633]
[1765907664292,1.5691,2924.6,2924.5,6.10270633]
[1765907664686,1.5691,2924.6,2924.5,5.93170633]
[1765907665384,1.5691,2924.6,2924.5,0.8151]
[1765907665892,1.5691,2924.6,2924.5,1.5795]
[1765907669396,1.5691,2924.6,2924.5,2.98239732]
[1765907669596,3.2078,2925.1,2924.5,2.98239732]
[1765907669597,3.2078,2925.1,2924.5,1.87969732]
[1765907669892,2.0633,2925.0,2924.9,1.40289732]
[1765907670194,1.5691,2924.8,2924.7,2.98239732]
[1765907671096,1.5691,2924.6,2924.5,2.98239732]
[1765907671291,4.7769,2925.4,2925.3,0.8151]
[1765907671986,1.5691,2925.1,2925.0,2.98239732]
[1765907672386,1.5691,2925.1,2925.0,2.21799732]
[1765907673094,1.5691,2925.1,2925.0,2.98239732]
[1765907673395,2.0633,2925.0,2924.9,0.8151]
[1765907673587,2.0305,2924.5,2924.4,1.58277926]
[1765907673791,2.0305,2924.5,2924.4,2.34027926]
[1765907674195,2.0305,2924.5,2924.4,0.00887194]
[1765907677793,5.1751,2925.0,2924.9,0.7209]
[1765907678090,1.4731,2924.6,2924.5,3.9287]
[1765907678298,1.9266,2924.5,2924.4,0.00887194]
[1765907678599,1.9266,2924.5,2924.4,0.72977194]
[1765907679292,1.9266,2924.5,2924.4,1.51027194]
[1765907679705,1.1961,2924.5,2924.4,1.51027194]
[1765907681299,1.9266,2924.5,2924.4,1.51027194]
[1765907681487,1.9266,2924.5,2924.4,0.72977194]
[1765907681893,1.9266,2924.5,2924.4,0.00887194]
[1765907682288,1.9266,2924.5,2924.4,0.72977194]
[1765907682903,1.9266,2924.5,2924.4,0.00887194]
[1765907683994,1.1961,2924.5,2924.4,1.51027194]
[1765907684196,1.9266,2924.5,2924.4,0.72977194]
[1765907685797,1.9266,2924.5,2924.4,1.51027194]
[1765907686105,1.9266,2924.5,2924.4,0.72977194]
[1765907686594,1.9266,2924.5,2924.4,0.00887194]
[1765907686799,1.9266,2924.5,2924.4,0.72977194]
[1765907687097,1.9266,2924.5,2924.4,1.51027194]
[1765907687704,3.2078,2924.7,2924.4,1.51027194]
[1765907687705,4.6809,2924.7,2924.6,1.5014]
[1765907688801,3.9504,2924.7,2924.6,1.5014]
[1765907688997,1.4731,2924.7,2924.6,1.5014]
[1765907690304,1.4731,2924.7,2924.6,0.7209]
[1765907690805,1.4731,2924.7,2924.6,1.5014]
[1765907691604,0.7426,2924.7,2924.6,1.5014]
[1765907691908,1.4731,2924.7,2924.6,1.5014]
[1765907692408,0.7426,2924.7,2924.6,1.5014]
[1765907692606,0.4942,2925.0,2924.5,3.2078]
[1765907692805,1.9673,2925.0,2924.9,0.7209]
[1765907694105,1.9673,2925.0,2924.9,1.5014]
[1765907694805,1.9673,2925.0,2924.9,0.7209]
[1765907695310,1.9673,2925.0,2924.9,1.5014]
[1765907695611,1.9673,2925.0,2924.9,0.7209]
[1765907696013,1.4731,2924.7,2924.6,1.5014]
[1765907696311,1.4731,2924.6,2924.5,1.6724]
[1765907697511,0.7426,2924.6,2924.5,1.6724]
[1765907697914,1.9673,2925.0,2924.9,1.5014]
[1765907698111,1.9673,2925.0,2924.9,0.7209]
[1765907698912,1.9673,2925.0,2924.5,1.6724]
[1765907698913,0.4942,2925.0,2924.5,1.6724]
[1765907700110,1.9673,2925.0,2924.9,1.5014]
[1765907700309,4.6809,2925.2,2925.1,1.5014]
[1765907700614,4.6809,2925.2,2925.1,0.7209]
[1765907701016,4.6809,2925.2,2924.7,3.37879]
[1765907701217,4.6809,2925.2,2925.1,0.7209]
[1765907701406,0.477,2925.5,2925.4,1.5014]
[1765907701407,1.9501,2925.5,2925.4,1.5014]
[1765907701611,3.2078,2925.8,2925.4,1.5014]
[1765907701612,3.2078,2925.8,2925.7,1.5014]
[1765907701812,0.45637436,2926.0,2925.4,7.63397872]
[1765907702010,0.45637436,2926.0,2925.4,0.7209]
[1765907702011,1.9266,2925.5,2925.4,0.7209]
[1765907702210,3.2078,2925.8,2925.7,0.7209]
[1765907702416,4.6809,2925.8,2925.2,1.40240003]
[1765907702709,1.4731,2925.4,2925.3,5.8548157]
[1765907703017,0.7426,2925.4,2925.3,5.8548157]
[1765907703214,1.19897436,2926.0,2925.9,1.5014]
[1765907703413,1.92947436,2926.0,2925.9,0.7209]
[1765907704218,1.92947436,2926.0,2925.9,1.5014]
[1765907704419,1.92947436,2926.0,2925.9,0.7209]